bitfinex-derivatives/quotes_ETHF0:USTF0_20250626
["timestamp","ask_amount","ask_price","bid_price","bid_amount"]
[1750901591695,9.379,2453.6,2453.1,3.2078]
[1750901591904,9.379,2453.5,2453.1,3.2078]
[1750901592099,1.4067,2453.4,2453.1,3.2078]
[1750901592294,1.4067,2453.4,2452.7,28.0]
[1750901592295,3.2078,2453.3,2452.7,3.2078]
[1750901592500,1.4067,2453.2,2452.7,3.2078]
[1750901592801,3.2078,2453.0,2452.0,3.2078]
[1750901592998,10.7857,2452.9,2452.0,3.2078]
[1750901593295,3.2078,2452.6,2452.0,3.2078]
[1750901593502,1.3566,2452.5,2452.3,3.2078]
[1750901594595,1.3566,2452.5,2452.0,3.2078]
[1750901595104,1.3566,2452.5,2451.8,8.16312719]
[1750901595305,3.2078,2453.6,2452.3,3.2078]
[1750901595506,3.2078,2453.6,2452.6,3.2078]
[1750901595507,3.2078,2453.4,2452.6,3.2078]
[1750901595703,1.3566,2453.3,2452.6,3.2078]
[1750901596399,1.3566,2453.3,2452.2,8.16312719]
[1750901596400,3.2078,2453.1,2452.2,8.16312719]
[1750901596603,10.7757,2453.0,2452.4,3.2078]
[1750901596803,3.2078,2452.9,2452.3,3.2078]
[1750901597003,1.3967,2452.8,2452.3,3.2078]
[1750901597793,1.3967,2452.8,2451.6,1.385]
[1750901597794,9.378,2453.3,2452.7,3.2078]
[1750901597998,10.7747,2453.2,2452.7,3.2078]
[1750901598203,10.7747,2453.2,2453.1,3.2078]
[1750901598403,10.7747,2453.2,2452.8,3.2078]
[1750901598594,10.7747,2453.2,2452.9,3.2078]
[1750901598802,10.7747,2453.2,2453.0,3.2078]
[1750901599006,1.3967,2453.2,2453.0,3.2078]
[1750901599210,1.3967,2453.2,2452.5,8.16312719]
[1750901599211,6.3967,2453.2,2452.5,3.2078]
[1750901599404,1.3967,2453.2,2452.9,3.2078]
[1750901599911,9.378,2453.1,2452.9,3.2078]
[1750901600204,1.4152,2453.0,2452.9,3.2078]
[1750901600503,9.378,2453.2,2452.9,3.2078]
[1750901601001,1.4152,2453.4,2452.9,3.2078]
[1750901601310,9.378,2453.2,2452.9,3.2078]
[1750901601497,1.4152,2453.1,2452.9,3.2078]
[1750901602209,9.378,2453.4,2452.9,11.37092719]
[1750901602514,9.378,2453.5,2453.3,3.2078]
[1750901602698,10.7661,2453.4,2453.3,3.2078]
[1750901602902,1.3881,2453.4,2453.3,3.2078]
[1750901603107,10.7661,2453.4,2453.3,3.2078]
[1750901603500,10.7661,2453.4,2453.1,3.2078]
[1750901603805,10.7651,2453.4,2453.1,3.2078]
[1750901604008,9.377,2453.3,2453.1,3.2078]
[1750901604306,1.3881,2453.2,2452.8,3.2078]
[1750901605500,47.6919,2454.0,2453.1,3.2078]
[1750901605708,1.3707,2453.9,2453.5,3.2078]
[1750901606312,1.3707,2453.9,2453.7,3.2078]
[1750901606502,9.377,2453.8,2453.7,3.2078]
[1750901606706,9.377,2453.8,2452.9,8.16312719]
[1750901606707,9.377,2453.8,2453.5,3.2078]
[1750901606910,1.3707,2453.7,2453.5,3.2078]
[1750901607418,0.7159,2454.0,2453.5,3.2078]
[1750901607613,9.377,2453.9,2453.5,3.2078]
[1750901607811,10.7477,2453.9,2453.5,3.2078]
[1750901608010,10.7477,2453.9,2453.8,3.2078]
[1750901608206,10.7477,2453.9,2453.5,3.2078]
[1750901608207,1.3707,2453.9,2453.5,3.2078]
[1750901608411,1.3707,2453.9,2453.8,3.2078]
[1750901608911,46.973,2454.4,2453.8,3.2078]
[1750901608912,3.2078,2455.0,2453.8,3.2078]
[1750901609206,9.377,2454.9,2454.4,3.2078]
[1750901609402,7.93285983,2455.2,2454.7,3.2078]
[1750901609403,0.7123,2455.2,2454.7,3.2078]
[1750901609603,9.376,2455.4,2454.7,3.2078]
[1750901609816,1.3954,2455.5,2455.0,3.2078]
[1750901610506,38.8352,2455.5,2454.7,3.2078]
[1750901610699,29.215,2455.4,2454.7,3.2078]
[1750901610898,1.3954,2455.3,2454.7,3.2078]
[1750901611304,9.376,2455.2,2455.0,3.2078]
[1750901611699,1.3419,2455.1,2455.0,3.2078]
[1750901612504,9.048,2455.2,2455.0,3.2078]
[1750901613115,1.3419,2455.1,2454.7,3.2078]
[1750901614215,3.2078,2455.0,2454.4,3.2078]
[1750901614403,3.2078,2454.7,2454.1,3.2078]
[1750901614601,39.5056,2454.6,2454.1,3.2078]
[1750901615713,3.2078,2454.4,2453.2,13.6476]
[1750901615906,3.2078,2454.1,2453.2,4.5996]
[1750901616113,39.4566,2454.0,2453.2,4.5996]
[1750901617610,1.3676,2454.0,2453.2,4.5996]
[1750901617818,46.953,2454.7,2453.7,3.2078]
[1750901618009,46.953,2454.7,2454.1,3.2078]
[1750901618210,30.3704,2454.6,2454.1,3.2078]
[1750901618708,1.3924,2454.6,2454.1,3.2078]
[1750901618908,1.3924,2454.6,2454.4,3.2078]
[1750901618909,38.03,2454.5,2454.4,3.2078]
[1750901619215,46.953,2454.7,2454.4,3.2078]
[1750901619416,38.011,2454.6,2454.4,3.2078]
[1750901619814,28.963,2454.5,2454.4,3.2078]
[1750901620011,46.953,2454.7,2454.4,3.2078]
[1750901620619,28.923,2454.6,2454.4,3.2078]
[1750901620819,28.912,2454.5,2454.4,3.2078]
[1750901621024,46.953,2454.7,2454.4,3.2078]
[1750901621228,28.9,2454.6,2454.4,3.2078]
[1750901622219,28.9,2454.9,2454.4,3.2078]
[1750901622920,9.047,2455.0,2454.7,3.2078]
[1750901623129,9.047,2455.0,2454.7,11.37092719]
[1750901623130,28.84,2455.0,2454.7,11.37092719]
[1750901623429,28.843,2455.1,2454.8,1.441]
[1750901623636,9.047,2455.9,2455.0,3.2078]
[1750901623821,9.047,2455.9,2454.8,1.441]
[1750901623822,28.832,2455.6,2455.4,3.2078]
[1750901624120,28.84,2455.6,2455.4,3.2078]
[1750901624429,28.832,2455.6,2455.0,3.2078]
[1750901624623,1.3609,2455.5,2455.0,3.2078]
[1750901625114,3.2078,2455.8,2455.0,3.2078]
[1750901625314,3.2078,2456.3,2455.6,3.2078]
[1750901625513,39.2349,2456.2,2455.6,3.2078]
[1750901625713,37.874,2456.1,2455.6,3.2078]
[1750901626117,3.2078,2455.7,2455.3,3.2078]
[1750901626325,1.3609,2455.6,2455.0,3.2078]
[1750901626627,28.822,2455.5,2455.3,3.2078]
[1750901626924,28.835,2455.4,2455.3,3.2078]
[1750901627126,28.826,2455.4,2455.3,3.2078]
[1750901627327,1.319,2456.0,2455.3,3.2078]
[1750901627526,37.861,2455.9,2455.6,3.2078]
[1750901627730,1.319,2455.9,2455.6,3.2078]
[1750901627926,28.806,2455.8,2455.6,3.2078]
[1750901628125,1.319,2456.3,2455.6,3.2078]
[1750901628325,1.319,2455.9,2455.6,3.2078]
[1750901628727,6.319,2455.9,2454.8,3.2078]
[1750901629026,37.827,2455.8,2455.1,3.2078]
[1750901629237,1.319,2455.9,2455.7,3.2078]
[1750901629435,28.792,2455.8,2455.7,3.2078]
[1750901629730,3.2078,2457.0,2455.7,3.2078]
[1750901629950,3.2078,2457.0,2455.6,8.16312719]
[1750901629951,3.2078,2457.4,2456.4,11.37092719]
[1750901630230,4.6189,2457.9,2456.8,11.37092719]
[1750901630426,28.852,2458.0,2457.7,3.2078]
[1750901630819,1.3744,2458.1,2457.7,3.2078]
[1750901631027,1.3744,2458.1,2457.4,3.2078]
[1750901631232,11.05239389,2460.7,2458.0,11.37092719]
[1750901631536,3.16187755,2462.6,2460.6,3.2078]
[1750901631832,4.099,2463.7,2462.5,8.16312719]
[1750901632030,1.12632316,2465.2,2464.1,3.2078]
[1750901632221,3.2078,2466.2,2464.1,1.60798339]
[1750901632416,3.2078,2466.1,2465.0,8.16312719]
[1750901632635,3.2078,2466.1,2465.6,8.16312719]
[1750901632820,3.2078,2468.2,2465.8,3.2078]
[1750901633024,3.2078,2467.3,2465.9,3.2078]
[1750901633221,14.3288,2467.2,2465.1,11.121]
[1750901633530,3.2078,2466.7,2465.8,3.2078]
[1750901633720,1.4116,2466.6,2466.5,3.2078]
[1750901633922,11.121,2466.7,2465.9,8.16312719]
[1750901634230,3.2078,2466.3,2465.9,3.2078]
[1750901634434,4.0585,2466.2,2466.0,3.2078]
[1750901634930,3.2078,2466.1,2464.8,3.2078]
[1750901635139,3.2078,2466.1,2464.1,28.0]
[1750901635140,11.844,2466.1,2465.4,3.2078]
[1750901635427,3.2078,2466.2,2465.6,3.2078]
[1750901635732,7.2663,2465.7,2464.5,8.16312719]
[1750901635931,7.2663,2465.7,2462.6,33.329]
[1750901635932,4.0585,2464.7,2464.0,3.2078]
[1750901636140,15.0518,2464.6,2463.7,8.16312719]
[1750901636430,11.37092719,2465.8,2464.5,3.2078]
[1750901636632,0.8507,2464.6,2463.8,3.2078]
[1750901636820,3.2078,2465.1,2464.2,3.2078]
[1750901637022,3.2078,2464.4,2463.8,8.16312719]
[1750901637222,3.2078,2466.3,2464.3,11.37092719]
[1750901637426,2.02432,2468.6,2465.4,3.2078]
[1750901637427,3.2078,2466.6,2465.4,3.2078]
[1750901637628,3.2078,2465.9,2465.1,11.37092719]
[1750901637828,3.2078,2465.9,2465.4,3.2078]
[1750901638027,3.2078,2466.3,2465.2,0.0077]
[1750901638334,2.0291,2465.4,2464.9,3.2078]
[1750901638634,50.0408,2465.9,2464.9,3.2078]
[1750901638837,2.0291,2465.1,2464.8,3.2078]
[1750901639037,2.0291,2464.7,2464.4,3.2078]
[1750901639233,3.2078,2466.1,2464.6,8.16312719]
[1750901639434,2.0291,2465.8,2465.7,3.2078]
[1750901639635,2.0291,2465.4,2465.1,3.2078]
[1750901640138,26.0,2466.0,2465.1,16.37092719]
[1750901640439,3.2078,2468.0,2465.9,3.2078]
[1750901640633,3.2078,2467.2,2466.3,3.2078]
[1750901640832,3.2078,2467.2,2465.2,46.803]
[1750901640833,3.2078,2467.0,2465.9,3.2078]
[1750901641039,3.2078,2466.4,2465.6,3.2078]
[1750901641236,3.2078,2466.4,2462.5,2.02929]
[1750901641237,2.83993,2465.3,2464.3,3.2078]
[1750901641434,2.0291,2465.1,2464.7,3.2078]
[1750901641740,4.01818,2466.6,2465.3,0.8108]
[1750901641928,0.81065,2465.8,2465.7,3.2078]
[1750901642128,2.0291,2466.5,2465.7,4.01846]
[1750901642437,0.81021,2467.2,2466.4,3.2078]
[1750901642743,46.784,2468.5,2466.4,3.2078]
[1750901642744,2.0291,2467.9,2467.1,3.2078]
[1750901642944,2.0291,2467.9,2466.7,8.16312719]
[1750901642945,2.0291,2467.8,2467.4,3.2078]
[1750901643139,26.0,2468.9,2467.6,3.2078]
[1750901643140,3.2078,2468.2,2467.6,3.2078]
[1750901643343,2.0291,2468.0,2467.3,3.2078]
[1750901643633,1.424,2468.1,2467.7,3.2078]
[1750901643835,2.0291,2467.8,2467.7,3.2078]
[1750901644143,2.0291,2467.9,2467.7,3.2078]
[1750901644437,0.8102,2467.2,2466.5,3.2078]
[1750901644740,1.424,2467.1,2466.8,3.2078]
[1750901644945,2.0291,2467.3,2466.8,3.2078]
[1750901645242,2.0291,2467.1,2466.8,3.2078]
[1750901645437,0.81038,2466.7,2466.1,3.2078]
[1750901645737,0.81038,2466.7,2466.4,3.2078]
[1750901645935,1.4213,2467.0,2466.4,3.2078]
[1750901646135,3.2078,2467.5,2466.9,3.2078]
[1750901646345,3.2078,2467.5,2465.4,1.4082]
[1750901646346,3.2078,2467.8,2467.2,3.2078]
[1750901647235,2.0291,2467.6,2467.2,3.2078]
[1750901647433,3.2078,2467.8,2467.2,8.2078]
[1750901647738,1.4213,2468.8,2467.7,3.2078]
[1750901647934,4.6291,2468.8,2468.1,3.2078]
[1750901648139,4.6291,2468.8,2466.2,11.37092719]
[1750901648140,3.2078,2468.2,2466.2,11.37092719]
[1750901648332,3.2078,2468.2,2464.9,292.231]
[1750901648333,3.2078,2466.3,2465.6,3.2078]
[1750901648534,3.2078,2466.6,2465.9,3.2078]
[1750901648738,3.2078,2466.2,2465.6,3.2078]
[1750901648942,0.81056,2466.1,2466.0,3.2078]
[1750901649139,3.2078,2466.6,2466.0,3.2078]
[1750901649336,3.3831,2466.5,2466.0,3.2078]
[1750901649544,2.0291,2466.2,2465.7,3.2078]
[1750901649843,2.0291,2466.3,2465.7,3.2078]
[1750901650137,4.5618,2466.5,2465.8,3.2078]
[1750901650341,1.354,2466.2,2465.8,3.2078]
[1750901650539,2.0291,2466.2,2465.8,3.2078]
[1750901650740,26.0,2467.1,2466.1,3.2078]
[1750901650741,4.5618,2466.6,2466.1,3.2078]
[1750901650950,2.0291,2466.5,2466.1,3.2078]
[1750901651142,3.3496,2466.5,2466.1,3.2078]
[1750901651338,3.3496,2466.5,2465.7,3.2078]
[1750901651339,5.2369,2466.2,2465.7,3.2078]
[1750901651538,0.8105,2466.3,2466.1,3.2078]
[1750901651742,2.0291,2466.4,2466.1,3.2078]
[1750901651943,1.3205,2467.0,2465.8,3.2078]
[1750901651944,2.0291,2466.2,2465.8,3.2078]
[1750901652140,2.0291,2465.9,2465.8,3.2078]
[1750901652345,3.2078,2466.9,2465.8,3.2078]
[1750901652542,3.2078,2466.9,2466.3,3.2078]
[1750901652741,1.3205,2466.8,2466.3,3.2078]
[1750901652941,2.0291,2466.4,2466.0,3.2078]
[1750901653240,26.0,2467.2,2465.8,0.81064]
[1750901653241,2.0291,2466.3,2465.8,0.81064]
[1750901653438,2.83959,2466.3,2466.2,3.2078]
[1750901653635,3.2078,2466.9,2466.2,3.2078]
[1750901653837,0.81031,2466.9,2466.5,3.2078]
[1750901654030,2.0291,2466.7,2466.5,3.2078]
[1750901654242,0.81033,2466.8,2466.5,3.2078]
[1750901654440,41.55195,2467.9,2466.5,3.2078]
[1750901654441,3.2078,2468.7,2466.5,8.2078]
[1750901654644,2.0291,2467.8,2466.8,2.02577]
[1750901654842,0.80977,2468.5,2467.7,4.01781]
[1750901655141,2.0291,2468.5,2468.4,3.2078]
[1750901655344,3.9211,2469.0,2468.4,3.2078]
[1750901655646,3.9211,2469.0,2468.1,0.8099]
[1750901655647,2.0291,2468.5,2468.1,0.8099]
[1750901655845,2.0291,2468.7,2468.4,3.2078]
[1750901656150,3.2078,2470.0,2468.4,8.2078]
[1750901656344,3.2078,2470.7,2469.9,3.2078]
[1750901656546,3.2078,2471.8,2471.2,0.80886]
[1750901656842,3.2078,2472.4,2471.7,3.2078]
[1750901657040,10.32615379,2473.1,2472.1,3.2078]
[1750901657238,10.32615379,2473.1,2472.5,3.2078]
[1750901657440,3.2078,2472.8,2470.9,3.2078]
[1750901657640,3.2078,2473.0,2472.3,2.37188]
[1750901657841,2.0291,2471.3,2471.1,3.2078]
[1750901658041,46.706,2471.7,2471.1,3.2078]
[1750901658247,2.0291,2471.2,2471.1,3.2078]
[1750901658444,2.83799,2471.2,2471.1,3.2078]
[1750901658646,2.83799,2471.2,2469.4,3.2078]
[1750901658647,8.2078,2471.2,2469.4,3.2078]
[1750901658846,2.02197,2471.6,2468.6,1.32128636]
[1750901658847,3.2078,2472.2,2471.0,3.2078]
[1750901659146,3.2078,2474.5,2472.3,0.80852]
[1750901659344,48.72461,2475.7,2472.6,3.2078]
[1750901659345,3.2078,2473.4,2472.6,3.2078]
[1750901659547,3.2078,2474.1,2472.8,3.2078]
[1750901659745,2.01889,2475.3,2472.0,3.2078]
[1750901659746,3.2078,2472.9,2472.0,3.2078]
[1750901659956,3.2078,2473.3,2472.7,3.2078]
[1750901660336,46.706,2474.4,2472.1,3.2078]
[1750901660337,3.2078,2473.0,2472.1,3.2078]
[1750901660638,3.2078,2475.7,2473.4,3.2078]
[1750901660950,3.2078,2475.7,2472.9,7.96729327]
[1750901660951,3.2078,2476.1,2474.8,3.2078]
[1750901661242,3.2078,2475.8,2474.9,1.3776]
[1750901661439,3.2078,2475.5,2474.2,3.2078]
[1750901661637,3.2078,2475.8,2475.0,3.2078]
[1750901661840,3.2078,2475.2,2474.2,3.2078]
[1750901662040,0.27099803,2474.6,2474.2,3.2078]
[1750901662343,0.80773,2474.8,2474.2,3.2078]
[1750901662547,0.80773,2474.8,2473.6,1.3776]
[1750901662548,0.27099803,2474.3,2473.8,3.2078]
[1750901662756,0.27099803,2473.7,2473.1,3.2078]
[1750901662946,3.2078,2475.8,2473.6,11.17509327]
[1750901663140,3.2078,2475.3,2473.9,3.2078]
[1750901663338,3.2078,2475.3,2474.0,3.2078]
[1750901663639,3.2078,2474.9,2473.7,3.2078]
[1750901663843,3.2078,2474.6,2473.4,3.2078]
[1750901664041,3.2078,2474.9,2473.4,3.2078]
[1750901664246,3.2078,2474.7,2473.7,3.2078]
[1750901664646,2.01883,2475.4,2473.7,3.2078]
[1750901664647,0.8079,2474.3,2473.7,3.2078]
[1750901664838,3.2078,2474.5,2473.7,3.2078]
[1750901665040,3.2078,2474.5,2473.4,3.2078]
[1750901665241,3.2078,2473.9,2472.8,3.2078]
[1750901665749,0.80818,2473.4,2472.8,3.2078]
[1750901666053,3.2078,2473.7,2472.8,3.2078]
[1750901666251,0.80826,2473.2,2472.8,3.2078]
[1750901666650,0.80824,2473.2,2472.8,3.2078]
[1750901666947,3.2078,2474.0,2473.1,3.2078]
[1750901667152,3.2078,2476.2,2474.5,3.2078]
[1750901667340,3.2078,2475.8,2475.0,3.2078]
[1750901667540,3.2078,2475.4,2475.0,3.2078]
[1750901667745,0.80761,2475.2,2474.9,3.2078]
[1750901667948,1.4287,2475.3,2474.9,3.2078]
[1750901668148,3.2078,2475.0,2473.0,3.2078]
[1750901668355,3.2078,2473.5,2472.8,1.3075]
[1750901668655,3.2078,2473.5,2471.1,2.02223]
[1750901668656,3.2078,2472.9,2471.7,3.2078]
[1750901668851,2.02042,2473.5,2470.3,2.02293]
[1750901668852,0.80848,2472.5,2472.1,3.2078]
[1750901669051,0.80848,2472.5,2470.3,2.02293]
[1750901669052,3.2078,2474.6,2472.3,11.17509327]
[1750901669353,3.2078,2474.2,2473.1,3.2078]
[1750901669558,3.2078,2473.5,2472.4,3.2078]
[1750901669754,0.80823,2473.3,2472.7,3.2078]
[1750901669958,1.327,2473.2,2472.6,3.2078]
[1750901670259,1.327,2473.2,2471.8,46.609]
[1750901670260,0.80826,2473.2,2473.1,3.2078]
[1750901670451,3.2078,2473.6,2473.1,3.2078]
[1750901670651,2.01979,2474.2,2472.2,3.2078]
[1750901670652,3.2078,2473.3,2472.2,3.2078]
[1750901670955,0.80837,2472.8,2472.2,3.2078]
[1750901671151,2.13541,2472.7,2472.2,3.2078]
[1750901671346,1.327,2472.7,2472.5,3.2078]
[1750901672055,0.80843,2472.6,2472.5,3.2078]
[1750901672244,0.80843,2472.6,2472.4,3.2078]
[1750901672443,4.5252,2472.5,2471.6,3.2078]
[1750901672743,4.5252,2472.5,2472.3,3.2078]
[1750901672744,26.0,2472.4,2472.3,3.2078]
[1750901672949,27.3174,2472.4,2472.3,3.2078]
[1750901673249,46.609,2473.4,2472.3,3.2078]
[1750901673560,0.80835,2472.9,2472.8,3.2078]
[1750901673756,26.80835,2472.9,2472.8,3.2078]
[1750901674057,31.0,2472.9,2471.9,3.2078]
[1750901674258,3.2078,2472.4,2471.9,3.2078]
[1750901674554,3.2078,2472.1,2471.4,11.23902126]
[1750901674750,3.2078,2471.7,2471.1,3.2078]
[1750901674954,3.2078,2471.7,2470.6,8.03122126]
[1750901674955,3.2078,2471.3,2470.6,3.2078]
[1750901675151,3.2078,2470.9,2469.9,3.2078]
[1750901675351,3.2078,2470.4,2469.8,3.2078]
[1750901675655,1.3137,2470.8,2469.0,1.4242]
[1750901675656,3.2078,2470.1,2469.5,3.2078]
[1750901675858,46.606,2470.6,2469.0,1.4242]
[1750901675859,3.2078,2469.6,2469.0,3.2078]
[1750901676060,1.3137,2469.5,2469.0,3.2078]
[1750901676461,3.2078,2471.3,2469.4,3.2078]
[1750901676759,3.2078,2469.5,2468.6,3.2078]
[1750901676960,3.2078,2469.1,2468.6,3.2078]
[1750901677161,3.2078,2468.7,2467.8,3.2078]
[1750901677360,1.3137,2468.6,2467.8,3.2078]
[1750901677560,1.3137,2468.6,2468.4,3.2078]
[1750901677856,1.3137,2468.6,2468.0,0.80993]
[1750901677857,4.5215,2468.6,2468.0,3.2078]
[1750901678055,0.80999,2467.9,2466.8,3.2078]
[1750901678262,3.2078,2467.6,2466.8,3.2078]
[1750901678464,3.2078,2467.6,2466.8,4.0181]
[1750901678757,1.4182,2467.5,2466.8,3.2078]
[1750901678955,0.81016,2467.4,2466.8,3.2078]
[1750901679262,3.2078,2467.1,2466.7,3.2078]
[1750901679555,1.4182,2467.0,2466.7,3.2078]
[1750901679755,3.2078,2467.4,2466.7,3.2078]
[1750901680158,1.4182,2467.3,2466.7,3.2078]
[1750901680359,3.2078,2467.1,2466.7,3.2078]
[1750901680554,1.4182,2467.0,2466.7,3.2078]
[1750901680755,3.2078,2466.8,2465.9,3.2078]
[1750901680956,3.2078,2466.2,2465.8,3.2078]
[1750901681262,3.2078,2465.9,2465.1,5.40598]
[1750901681455,1.4159,2466.1,2465.2,3.2078]
[1750901681654,1.4159,2465.8,2465.2,3.2078]
[1750901681861,4.6237,2465.8,2465.2,3.2078]
[1750901682057,4.6237,2465.8,2465.3,0.08112602]
[1750901682459,1.4159,2465.8,2465.3,0.08112602]
[1750901682765,3.2078,2466.4,2465.3,0.08112602]
[1750901682967,3.2078,2466.4,2465.7,4.01847]
[1750901683264,3.2078,2466.1,2465.4,3.2078]
[1750901683458,1.4159,2466.0,2465.4,3.2078]
[1750901683662,1.4159,2466.0,2465.6,0.81072]
[1750901683866,1.4159,2466.0,2465.6,0.8107]
[1750901684065,1.4159,2466.0,2465.5,0.81075]
[1750901684261,3.2078,2465.6,2465.3,0.08112602]
[1750901684857,1.4271,2465.5,2465.4,0.81079]
[1750901685263,3.2078,2466.4,2465.4,5.0]
[1750901685462,3.2078,2466.1,2465.4,1.4325]
[1750901685763,3.2078,2465.8,2465.3,0.08112602]
[1750901686063,4.01847,2465.8,2465.3,0.08112602]
[1750901686360,3.2078,2465.5,2464.5,3.2078]
[1750901686567,1.4271,2465.4,2465.0,0.81091]
[1750901686760,1.4271,2465.4,2464.8,3.2078]
[1750901686961,3.2078,2465.0,2464.7,0.811]
[1750901687162,1.4271,2464.9,2464.8,0.81099]
[1750901687358,3.2078,2465.6,2464.7,3.2078]
[1750901687565,2.24386,2465.2,2464.8,0.08114248]
[1750901687769,3.2078,2464.9,2464.8,0.08114248]
[1750901688161,3.2078,2465.9,2464.8,13.03963658]
[1750901688364,3.2078,2465.9,2465.3,3.2078]
[1750901688560,4.6408,2465.8,2465.2,3.2078]
[1750901688863,3.2078,2465.3,2464.8,0.08114248]
[1750901689068,3.2078,2465.0,2464.1,3.2078]
[1750901689266,1.433,2465.2,2463.7,3.2078]
[1750901689267,3.2078,2464.3,2463.7,3.2078]
[1750901689463,3.2078,2464.7,2463.1,3.2078]
[1750901689777,3.2078,2463.8,2463.1,3.2078]
[1750901690162,3.2078,2463.7,2463.1,3.2078]
[1750901690359,3.2078,2463.7,2463.2,0.08119519]
[1750901690566,0.81145,2463.4,2463.2,0.08119519]
[1750901690764,0.81148,2463.3,2463.2,0.08119519]
[1750901690965,3.2078,2463.7,2463.2,0.08119519]
[1750901691168,0.81148,2463.3,2463.2,0.08119519]
[1750901691366,3.2078,2465.2,2463.2,0.08119519]
[1750901691568,3.2078,2464.5,2463.4,3.2078]
[1750901691769,3.2078,2464.5,2463.7,3.2078]
[1750901691964,4.01889,2464.5,2463.8,0.08117542]
[1750901692165,3.2078,2466.2,2464.3,3.2078]
[1750901692472,3.2078,2465.7,2464.8,3.2078]
[1750901692772,3.2078,2465.3,2464.8,3.2078]
[1750901692977,0.8109,2465.1,2464.3,0.81115]
[1750901693172,0.81096,2464.9,2464.8,3.2078]
[1750901693372,2.22084,2465.0,2464.8,3.2078]
[1750901693769,0.81096,2464.9,2464.8,3.2078]
[1750901693965,1.4353,2464.9,2464.8,3.2078]
[1750901694378,6.4353,2464.9,2463.8,0.08117542]
[1750901694568,3.2078,2464.6,2463.8,0.08117542]
[1750901694770,0.81117,2464.3,2464.1,3.2078]
[1750901694981,3.2078,2464.7,2464.1,3.2078]
[1750901695182,1.4353,2464.6,2464.1,3.2078]
[1750901695478,1.4353,2464.6,2464.4,3.2078]
[1750901695672,0.81098,2464.9,2464.4,3.2078]
[1750901695874,1.4353,2465.2,2464.7,3.2078]
[1750901696374,1.4353,2465.2,2465.0,3.2078]
[1750901696671,3.2078,2465.7,2465.0,3.2078]
[1750901696876,1.4444,2465.6,2465.0,3.2078]
[1750901697074,29.2078,2466.2,2465.3,3.2078]
[1750901697279,0.81059,2466.0,2465.3,3.2078]
[1750901697477,4.6522,2466.1,2465.3,3.2078]
[1750901697684,2.25498,2466.1,2465.8,3.2078]
[1750901697984,3.2078,2466.4,2465.5,3.2078]
[1750901698183,1.4444,2466.4,2465.8,3.2078]
[1750901698385,4.6522,2466.4,2465.8,3.2078]
[1750901698675,1.4444,2466.4,2465.9,0.8106]
[1750901698880,1.4444,2466.4,2466.3,3.2078]
[1750901699187,0.8107,2465.7,2465.3,3.2078]
[1750901699385,4.6522,2466.4,2465.3,3.2078]
[1750901699386,3.2078,2466.0,2465.3,3.2078]
[1750901699574,0.81071,2465.7,2465.3,3.2078]
[1750901699776,26.0,2466.3,2465.3,3.2078]
[1750901699975,2.15304,2465.9,2465.3,3.2078]
[1750901700174,3.2078,2466.5,2465.4,1.3248]
[1750901700379,1.3424,2466.7,2466.0,3.2078]
[1750901700587,3.2078,2466.8,2466.0,3.2078]
[1750901700881,1.3424,2466.6,2466.0,3.2078]
[1750901701079,3.2078,2468.1,2466.5,3.2078]
[1750901701376,3.2078,2466.6,2465.8,3.2078]
[1750901701579,3.2078,2466.0,2464.9,3.2078]
[1750901701782,1.3424,2466.5,2464.6,3.2078]
[1750901701783,3.2078,2465.7,2464.6,3.2078]
[1750901701972,1.3424,2465.9,2464.6,3.2078]
[1750901701973,3.2078,2465.4,2464.6,3.2078]
[1750901702173,1.3424,2465.6,2463.4,3.2078]
[1750901702174,3.2078,2464.7,2463.4,3.2078]
[1750901702378,3.2078,2463.7,2463.1,3.2078]
[1750901702578,1.3424,2463.6,2463.4,3.2078]
[1750901702773,1.3424,2463.6,2463.5,3.2078]
[1750901702981,1.3424,2463.6,2463.1,3.2078]
[1750901703183,1.3424,2463.6,2463.4,3.2078]
[1750901703381,0.81125,2464.0,2463.4,3.2078]
[1750901703576,1.3907,2464.0,2463.8,3.2078]
[1750901703782,3.2078,2464.6,2463.8,3.2078]
[1750901703984,3.2078,2464.6,2462.8,1.3248]
[1750901703985,0.81135,2463.8,2463.5,3.2078]
[1750901704175,3.2078,2464.7,2463.5,3.2078]
[1750901704379,4.5985,2464.7,2464.0,3.2078]
[1750901704580,1.3907,2464.7,2464.0,3.2078]
[1750901704783,0.81112,2464.4,2464.3,3.2078]
[1750901704988,3.2078,2464.6,2464.0,3.2078]
[1750901705181,1.3907,2464.3,2464.0,3.2078]
[1750901705587,3.2078,2465.7,2464.1,1.34928004]
[1750901705787,3.2078,2465.3,2464.7,3.2078]
[1750901705989,1.4238,2465.2,2464.9,3.2078]
[1750901706184,0.81092,2465.0,2464.9,3.2078]
[1750901706383,1.4238,2465.2,2464.9,3.2078]
[1750901706586,0.81078,2465.5,2465.0,1.34659793]
[1750901706782,3.2078,2465.8,2464.6,1.13594778]
[1750901706978,3.2078,2464.8,2464.1,3.54792287]
[1750901707180,1.4238,2464.7,2464.3,3.2078]
[1750901707486,0.81101,2464.8,2464.6,3.2078]
[1750901707688,0.81102,2464.7,2464.6,3.2078]
[1750901707887,3.2078,2464.9,2464.5,3.2078]
[1750901708085,0.81103,2464.7,2464.5,3.2078]
[1750901708392,2.23481,2464.8,2464.6,1.34570574]